Cogmind - Beta 15 @@@ ROGUE MODE // 2025.07.27 @ 15:02:14 Player: Bzilon Result: Destroyed by S-10 Pest with Light Assault Rifle Performance ------------- Evolutions (1) 500 Regions Visited (2) 400 Robots Destroyed (17) 85 Value Destroyed (455) 455 Prototype IDs (0) 0 Alien Tech Used (0) 0 Bonus (0) 0 TOTAL SCORE: 1440 Bonus ------- None Cogmind --------- Core Integrity 0/400 Matter 111/300 Energy 78/100 System Corruption 0% Temperature Cool (9) Movement Core (100) Ox1 Location -9/Materials Parts ------- > --- POWER (2) -------- (None) > --- PROPULSION (3) --- (None) > --- UTILITY (2) ------ Small Storage Unit > --- WEAPON (2) ------- (None) > --- INVENTORY (8) ---- Light Nuclear Core Small Storage Unit Peak State ------------ > --- POWER ------------ (None) > --- PROPULSION ------- Aluminum Leg Improved Aluminum Leg Compact Wheel > --- UTILITY ---------- Improved Heat Sink Small Storage Unit > --- WEAPON ----------- Particle Gun > --- INVENTORY -------- Light Nuclear Core Small Storage Unit [Rating: 10] Favorites ----------- Power Ion Engine Engine Ion Engine Propulsion Compact Wheel Leg Improved Aluminum Leg Wheel Compact Wheel Utility Small Storage Unit Device Sensor Array Storage Small Storage Unit Weapon Assault Rifle Energy Gun EM Pulse Gun Ballistic Gun Assault Rifle Launcher Grenade Launcher Special Weapon Mining Laser Build | -11 -10 -9 ------- Run | Yrd Mat Mat Slots Evolved 2 | . . 2 Power 1 | . . 1 Propulsion 1 | . . 1 Utility . | . . . Weapon . | . . . Parts Attached 17 | 6 2 9 Power 1 | 1 . . Engine 1 | 1 . . Core . | . . . Reactor . | . . . Propulsion 7 | 2 1 4 Treads . | . . . Leg 2 | . . 2 Wheel 5 | 2 1 2 Hover . | . . . Flight . | . . . Utility 3 | 1 . 2 Device 2 | . . 2 Storage 1 | 1 . . Processor . | . . . Hackware . | . . . Protection . | . . . Artifact . | . . . Weapon 6 | 2 1 3 Energy Gun 2 | 1 . 1 Energy Cannon . | . . . Ballistic Gun 2 | 1 . 1 Ballistic Cannon . | . . . Launcher 1 | . 1 . Special Weapon 1 | . . 1 Impact Weapon . | . . . Slashing Weapon . | . . . Piercing Weapon . | . . . Special Melee Weapon . | . . . Unidentified Prototypes . | . . . Parts Lost 15 | . 2 13 Power 1 | . . 1 Propulsion 7 | . 1 6 Utility 1 | . . 1 Weapon 6 | . 1 5 Highest Loss Streak 6 | . 1 6 To Critical Strikes . | . . . Average Backups 1 | . 1 2 Power . | . . 1 Propulsion . | . . . Utility . | . . . Weapon . | . 1 . Tool/Special . | . . . Unused Backups 2 | . . 2 Power 1 | . . 1 Propulsion . | . . . Utility 1 | . . 1 Weapon . | . . . Tool/Special . | . . . Average Slot Usage (%) 66 | . 82 50 Engine 8 | . 14 3 Leg 1 | . . 3 Wheel 19 | . 26 12 Device 4 | . . 8 Storage 12 | . 14 11 Energy Gun 3 | . 5 1 Ballistic Gun 10 | . 14 7 Launcher 5 | . 7 3 Peak Build Rating 10 | 6 6 10 Average Rating 5 | 4 5 5 On Entrance 4 | . 6 6 Naked Turns . | . . . Heaviest Build 16 | 14 15 16 Greatest Support 32 | 32 32 32 Greatest Overweight (x) 2 | . . 2 Average Overweight (x) . | . . . Largest Inventory Capacity 8 | 8 8 8 Average Capacity 7 | 7 8 8 Most Carried 5 | 4 3 5 Average Carried 1 | . 1 2 Final Capacity 8 | 8 8 8 Final Carried 2 | 1 2 2 Class Distribution -------------------- 91% | Mutant 8% | Scavenger-Mutant Dominant Class ---------------- Mutant | -10/Materials Mutant | -9/Materials Resources | -11 -10 -9 ----------- Run | Yrd Mat Mat Matter Collected 414 | 171 113 130 Remotely . | . . . Salvage Created 587 | 16 388 183 Parts 39 | 3 26 10 Haulers Intercepted . | . . . Recyclers Shooed 2 | . 2 . Parts Field Recycled . | . . . Retrieved Matter . | . . . Parts Self-Destructed . | . . . Prevented . | . . . Kills | -11 -10 -9 ------- Run | Yrd Mat Mat Combat Hostiles Destroyed 10 | . 7 3 Guns 4 | . 2 2 AOE 6 | . 5 1 Classes Destroyed 5 | 1 4 . Worker 2 | . 1 1 Tunneler 1 | 1 . . Recycler 3 | . 2 1 Operator 1 | . 1 . Grunt 10 | . 7 3 Best Kill Streak 9 | 1 9 5 Combat Bots Only 4 | . 4 3 Max Kills in Single Turn 2 | 1 2 2 Gunslinging . | . . . Exploded 1 | . 1 1 Melee . | . . . Uniques/NPCs Destroyed . | . . . Combat | -11 -10 -9 -------- Run | Yrd Mat Mat Hostile Shots Fired 158 | . 37 121 Missed 47 | . 12 35 Hits 111 | . 25 86 Projectile 111 | . 25 86 Critical Strikes 1 | . . 1 Damage Taken 1354 | . 361 993 Core 497 | . 92 405 Absorbed by Shields . | . . . Core Remaining (%) 81 | 100 63 . Volleys Fired 46 | 3 21 22 Largest 2 | 2 2 2 Hottest 65 | 60 60 65 Shots Fired 71 | 6 39 26 Gun 55 | 6 27 22 Cannon . | . . . Launcher 16 | . 12 4 Special . | . . . Kinetic 45 | 3 21 21 Thermal 1 | . . 1 Explosive 16 | . 12 4 Electromagnetic 9 | 3 6 . Robot Hit Streak 14 | 2 14 5 Robot Miss Streak 3 | 1 3 2 Penetration Max . | . . . Secondary Targets . | . . . Shots Hit Robots 46 | 3 26 17 Core Hits 31 | 1 20 10 Critical Kills . | . . . Critical Parts Destroyed . | . . . Critical Strikes . | . . . Melee Attacks . | . . . Impact . | . . . Slashing . | . . . Piercing . | . . . Sneak Attacks . | . . . Combat Hostiles . | . . . Follow-up Attacks . | . . . Damage Inflicted 1297 | 41 815 441 Guns 502 | 41 229 232 Cannons . | . . . Explosions 792 | . 586 206 Melee . | . . . Ramming 3 | . . 3 Kinetic 422 | 14 176 232 Thermal . | . . . Explosive 792 | . 586 206 Electromagnetic 80 | 27 53 . Impact . | . . . Slashing . | . . . Piercing . | . . . Highest Corruption . | . . . Average Corruption . | . . . Corruption Purged . | . . . Corruption Blocked . | . . . Overload Shots . | . . . Overflow Damage 11 | . 11 . Projectiles . | . . . Explosions 11 | . 11 . Melee . | . . . Knockbacks . | . . . Impact . | . . . Kinetic . | . . . Secondary . | . . . Self-Inflicted Damage 56 | . 41 15 Shots 3 | . 2 1 Rammed 2 | . . 2 Targets Rammed 2 | . . 2 Kicked . | . . . Crushed . | . . . Highest Temperature 93 | 20 93 22 Average Temperature 32 | 20 39 5 Received Heat Transfer 498 | . 186 312 Siege Activations . | . . . Martial Activations . | . . . Shielding Activations . | . . . Robots Disrupted . | . . . Combat Hostiles . | . . . Robots Corrupted . | . . . Combat Hostiles . | . . . Parts Fried . | . . . Impact Corruptions . | . . . Robots Melted . | . . . Combat Hostiles . | . . . Parts Melted . | . . . Heat Transferred . | . . . Parts Sabotaged . | . . . Parts Stolen . | . . . Parts Stripped . | . . . Power Chain Reactions . | . . . Alert | -11 -10 -9 ------- Run | Yrd Mat Mat Maximum Alert Level 1 | . 1 . Low Security (%) 96 | 100 91 100 Level 1 3 | . 8 . Level 2 . | . . . Level 3 . | . . . Level 4 . | . . . Level 5 . | . . . High Security . | . . . Max Security . | . . . Peak Influence 212 | 5 212 141 Initial 89 | . 3 89 Average 68 | . 79 78 Influence Increases 402 | 5 272 125 Destroy 0b10 Robot/C 200 | . 140 60 Destroy 0b10 Robot/NC 35 | 5 20 10 Destroy Leader 50 | . 40 10 Disable Machine 30 | . 15 15 Destroy Structure 72 | . 57 15 Lose Combat Pursuer 15 | . . 15 Influence Decreases 402 | . 65 337 Entered New Map 125 | . 2 123 Time Decay 143 | . 53 90 Lost Part 134 | . 10 124 Squads Dispatched 2 | . 1 1 Investigation . | . . . Extermination . | . . . Reinforcement 2 | . 1 1 Assault . | . . . Garrison . | . . . Intercept . | . . . Searches Triggered . | . . . Construction Impeded . | . . . Haulers Reinforced . | . . . Active Scanning Responses . | . . . Cargo Convoy Interrupts . | . . . Stealth | -11 -10 -9 --------- Run | Yrd Mat Mat Distress Signals . | . . . Communications Jammed . | . . . Distress Signals . | . . . Times Spotted 27 | . 9 18 Peak Tracking Total 15 | . 3 15 Tactical Retreats 1 | . . 1 Traps | -11 -10 -9 ------- Run | Yrd Mat Mat Traps Triggered . | . . . Indirectly . | . . . Trap Hack Attempts . | . . . Triggered . | . . . Disarmed . | . . . Reprogrammed . | . . . Reused . | . . . Traps Extracted . | . . . Installed . | . . . Triggered . | . . . Machines | -11 -10 -9 ---------- Run | Yrd Mat Mat Machines Disabled 2 | . 1 1 Max in Single Turn 1 | . 1 1 Machines Repaired . | . . . Machines Dismantled . | . . . Machines Sabotaged . | . . . Overloaded Fab Kills . | . . . Hacking | -11 -10 -9 --------- Run | Yrd Mat Mat Machines Accessed . | . . . Terminals . | . . . Fabricators . | . . . Repair Stations . | . . . Recycling Units . | . . . Scanalyzers . | . . . Garrison Access . | . . . Total Hacks . | . . . Successful . | . . . Failed . | . . . Catastrophic . | . . . Database Lockouts . | . . . Manual . | . . . Terminals . | . . . Fabricators . | . . . Repair Stations . | . . . Recycling Units . | . . . Scanalyzers . | . . . Garrison Access . | . . . Terminal Hacks . | . . . Fabricator Hacks . | . . . Repair Station Hacks . | . . . Recycling Unit Hacks . | . . . Scanalyzer . | . . . Garrison Access Hacks . | . . . Unauthorized Hacks . | . . . Terminals . | . . . Fabricators . | . . . Repair Stations . | . . . Recycling Units . | . . . Scanalyzers . | . . . Garrison Access . | . . . Data Cores Recovered . | . . . Used . | . . . Hacking Detections . | . . . Full Trace Events . | . . . Feedback Events . | . . . Feedback Blocked . | . . . Robot Schematics Acquired . | . . . Robots Built . | . . . Authchips . | . . . Time . | . . . Total Robot Build Rating . | . . . Part Schematics Acquired . | . . . Parts Built . | . . . Authchips . | . . . Time . | . . . Total Part Build Rating . | . . . Parts Repaired . | . . . Time . | . . . Parts Recycled . | . . . Recycled Matter . | . . . Retrieved Matter . | . . . Retrieved Components . | . . . Parts Scanalyzed . | . . . Part Schematics Acquired . | . . . Parts Damaged . | . . . Bothacking | -11 -10 -9 ------------ Run | Yrd Mat Mat Used RIF Installer . | . . . Robots Hacked . | . . . Non-combat . | . . . Combat . | . . . Robot Hacks Applied . | . . . Relay Couplers Released . | . . . Fabnet Peak Effective % . | . . . Robots Rewired . | . . . Allies Hacked . | . . . Hacks Repelled . | . . . Allies | -11 -10 -9 -------- Run | Yrd Mat Mat Total Allies . | . . . Largest Group . | . . . Highest-Rated Group . | . . . Highest-Rated Ally . | . . . Total Orders . | . . . Ally Attacks . | . . . Total Damage . | . . . Kills . | . . . Allies Corrupted . | . . . Allies Melted . | . . . Intel | -11 -10 -9 ------- Run | Yrd Mat Mat Active Infowar (turns) 44 | . . 44 Sensors 44 | . . 44 Robot Analysis Total . | . . . Derelict Logs Recovered . | . . . Drone Launches . | . . . Drone Recoveries . | . . . Exploration | -11 -10 -9 ------------- Run | Yrd Mat Mat Turns Passed 419 | 57 178 184 Spaces Moved 264 | 39 114 111 Core 16 | 9 . 7 Treads . | . . . Legs 26 | . . 26 Wheels 222 | 30 114 78 Hover . | . . . Flight . | . . . Fastest Speed 50 | 50 100 80 Average Speed 100 | 88 100 106 Slowest Speed 150 | 100 100 150 Overloaded Moves . | . . . Propulsion Burnouts . | . . . Robots Hopped . | . . . Potential Cave-ins . | . . . Cave-ins Triggered . | . . . Exploration Rate (%) 19 | 3 42 13 Regions Visited 2 Branch Regions . Pre-discovered Areas . | . . . Known Exits Taken . | . . . Unknown Exits Taken 2 | 1 1 . Scrap Searched . | . . . Spaces Dug . | . . . Terrain Destroyed 66 | . 53 13 Melee . | . . . Projectile . | . . . AOE 66 | . 53 13 Terrain Rammed . | . . . Walls Destroyed . | . . . Machines Disabled . | . . . Actions | -11 -10 -9 --------- Run | Yrd Mat Mat Total 349 | 56 139 154 Wait . | . . . Move 262 | 38 113 111 Hop . | . . . Pick Up 20 | 8 3 9 Fast Attach . | . . . Attach 16 | 6 2 8 Detach . | . . . Swap 1 | . . 1 Drop 2 | 1 . 1 Fire 46 | 3 21 22 Melee . | . . . Ram 2 | . . 2 Kick . | . . . Crush . | . . . Escape Stasis . | . . . Rewire . | . . . Trap . | . . . Miscellaneous . | . . . Route ------- -11/Scrapyard -10/Materials (discovered 2 exits: [*Mat] / [*Min]) -9/Materials History --------- Turn | Location | Event 9 | -11/Scrapyard | Discovered new exit (range 16) 58 | -11/Scrapyard | Entered Materials 131 | -10/Materials | Discovered new exit (range 6) 220 | -10/Materials | Discovered new exit (range 14) 236 | -10/Materials | Entered another Materials area 236 | -9/Materials | Evolved 2 slots: Power x1, Propulsion x1 304 | -9/Materials | Build established: Mutant 341 | -9/Materials | Lost 6 parts (1p3n2w) 412 | -9/Materials | Core integrity fell below 50% 419 | -9/Materials | Core integrity fell below 20% 420 | -9/Materials | Destroyed by S-10 Pest with Light Assault Rifle Last Messages --------------- U-05 Engineer builds a Wall. Acquired 20 matter. U-05 Engineer lays Concrete. Acquired Imp. Heat Sink. U-05 Engineer lays Concrete. Acquired 93 matter. U-05 Engineer lays Concrete. Acquired Particle Gun. U-05 Engineer lays Concrete. Acquired Sml. Storage Unit. U-05 Engineer lays Concrete. Dropped Broken Sensor Array. U-05 Engineer lays Concrete. Acquired Aluminum Leg. U-05 Engineer works on Atomic Centrifuge. Com. Wheel destroyed. Particle Gun destroyed. Aluminum Leg destroyed. Imp. Heat Sink destroyed. Imp. Aluminum Leg destroyed. Map ----- +----------------------------------------------------+ | ?????????????????????????????????????????????????+ | | ?????????????????????????????????????????????????# | | ?????????????????????????????????????????????????# | | ?????????????????????????????????????????????????# | | ?????????????????????????????????????????????????# | | ?????????????????????????????????????????????????+ | | ??????????????????????#??????????????????????????# | | ??????????????????????# ?????????????????????????# | | ??????????????????????# ????###+###?????????##### | | ??????????????????????# #### ############## | | ??????????????????????# ^ ! | | ??????????????????????# ^^ %= | | ??????????????????????# = = * | | ??????????????????##????###### ##########/### | | ??????????????????? ?????????## ##????# =## | | ???????????????????# ?????????# #?????# " # | | ??????????????????## ###??????# #?????# """ # | | ??????????????????# ####### #?????# """ # | | ??????????????????# s s ####### # | | ??????????????????# Y + # | | ??????????????????# ############## | | ??????????????????# ggg ####+##????????????# | | ??????????????????### s #?? ?????????????# | | ????????????????????# a #?? ?????????????# | | ????????????????????# #?? ?????????????### | | ????????????????????# @ #?? ???????????????? | | ????????????????????# #?? ???????????????? | | ????????????????????# #? ???????????????? | | ????????????????????# #? ???????????????? | | ???????????????????# #?? ???????????????? | | ?????????????????? g #????????????????????? | | ????????????????? #????????????????????? | | ???????????????? #????????????????????? | | ???????????????##### s t#????????????????????? | | ???????????????????# s w????????????????????? | | ???????????????????# s #????????????????????? | | ???????????????????# s #????????????????????? | | ???????????????????# #????????????????????? | | ???????????????????# a #????????????????????? | | ????????????????????? s #????????????????????? | | ??????????????????????? ?????????????????????? | | ?????????????????????????????????????????????????? | | ?????????????????????????????????????????????????? | | ?????????????????????????????????????????????????? | | ?????????????????????????????????????????????????? | | ?????????????????????????????????????????????????? | | ?????????????????????????????????????????????????? | | ?????????????????????????????????????????????????? | | ?????????????????????????????????????????????????? | | ?????????????????????????????????????????????????? | +----------------------------------------------------+ Best States ------------- Heat Dissipation 42 Energy Generation 10 Energy Capacity 250 Matter Stores 223 Matter Capacity 300 Sight Range 16 Robot Scan Range 14 Terrain Scan Density 10 Evasion (%) 55 Item Schematics ----------------- None Robot Schematics ------------------ None Fabricated ------------ Nothing Repaired ---------- Nothing Alien Tech Used ----------------- None Achievements -------------- None Challenges ------------ None Game ------ Seed TripodMagneticKinecellerator Manual? 0 Play Time 00:10:38 Cumulative 10.4 hours Start 2025.07.27 @ 14:50:56 End 2025.07.27 @ 15:02:14 Sessions 1 Manual Loads 0 Difficulty Rogue Special Mode None Game No. 24 Rogue 24 Adventurer 0 Explorer 0 Win Type - Total 0 Types 0/0/0/0/0/0/0/0/0/0 Lore% 9 Gallery% 12 Achievement% 12 Wizard Run 0 Options --------- Layout 1 ASCII 0 Keyboard 0 Movement Mouse Keybinds 0 Fullscreen 2 Font 24/Crisp Map View 50x35 Zoom Use 0% Tactical HUD 0 Map Filters NONE Filters NONE Steam 1 RUN: 640ed05b-0803-419f-b242-6dee7c262118